[Event "Turkish Youth Teams U18 2024"]
[Site "Karaman"]
[Date "2024.04.23"]
[Round "5"]
[White "Kaynak, Deniz Can"]
[Black "Ersoz, Teoman Guney"]
[Result "1-0"]
[ECO "B27"]
[WhiteElo "1780"]
[BlackElo "2123"]
[Annotator "TA"]
[PlyCount "93"]
[EventDate "2024.04.21"]
[EventType "team-tourn"]
[EventCountry "TUR"]
[SourceTitle "playchess.com"]
[Source "ChessBase"]
[SourceQuality "1"]
[TimeControl "5400+30"]

{[%evp 9,93,52,48,12,58,60,72,68,88,94,94,102,133,135,131,127,130,127,131,117,136,136,137,120,125,125,140,109,119,112,110,117,115,106,106,85,85,0,103,101,114,113,125,103,110,104,122,117,122,111,114,131,95,108,145,147,170,149,166,169,464,466,487,388,380,382,527,553,562,552,760,636,990,981,789,740,1076,1028,5377,5310,5081,5050,1570,914,811,727]} 1. e4 {[%emt 0:01:00]} c5 {[%emt 0:01:00]} 2. Nf3 {[%emt 0:00:30]} g6 {[%emt 0:00:30]} 3. c3 {[%emt 0:00:00]} d5 {[%emt 0:00:30]} 4. exd5 {[%emt 0:00:00]} Qxd5 {[%emt 0:00:30]} 5. Na3 {[%emt 0:00:30]} Bg7 {[%emt 0:00:30]} 6. Bc4 {[%emt 0:00:30]} Qd8 {[%emt 0:04:30]} (6... Qe4+ $11 {was preferrable.} 7. Be2 Nf6) 7. O-O $14 {[%emt 0:04:30]} Nf6 {[%emt 0:00:30]} 8. Qa4+ {[%emt 0:00:30] White is better.} Bd7 {[%emt 0:18:30]} 9. Qb3 {[%emt 0:00:30][%csl LRb7,LRf7]} O-O {[%emt 0:00:30]} 10. Ne5 {[%emt 0:00:00]} (10. Qxb7 Bc6 11. Qb3 Bxf3 12. gxf3 Nc6) 10... Qe8 {[%emt 0:18:30]} 11. Qxb7 {[%emt 0:00:00] White has more active pieces. The black rooks are passive.} Nc6 {[%emt 0:00:00]} 12. Nxd7 {[%emt 0:12:30]} Qxd7 {[%emt 0:00:00]} 13. Qxd7 {[%emt 0:00:30]} Nxd7 {[%emt 0:00:00][%cal Bf6d7,Bd7b6,Bb6d5,Bd5c7][%mdl 32]} 14. Bb5 {[%emt 0:07:30]} Rac8 {[%emt 0:00:00]} 15. d3 {[%emt 0:01:30]} Rfd8 {[%emt 0:01:30]} 16. Be3 {[%emt 0:03:30]} Nce5 {[%emt 0:00:00]} 17. Rad1 {[%emt 0:05:30]} Nb6 {[%emt 0:00:00]} 18. Rfe1 {[%emt 0:00:30]} Nd5 {[%emt 0:03:30]} 19. Bc1 {[%emt 0:18:30]} Nc7 {[%emt 0:02:30]} 20. Bc4 {[%emt 0:02:30]} Nxc4 {[%emt 0:03:30]} 21. Nxc4 {[%emt 0:03:30]} Nd5 {[%emt 0:00:30]} 22. Ne3 {[%emt 0:00:30] Strongly threatening Nxd5.} Nb6 {[%emt 0:03:30]} 23. Nc4 {[%emt 0:16:30]} Nd5 $1 {[%emt 0:01:30]} 24. g3 {[%emt 0:00:30]} Kf8 {[%emt 0:00:30][%cal Bg8f8,Bf8e7,Be7f7][%mdl 32]} 25. Be3 {[%emt 0:00:30]} e6 {[%emt 0:00:30]} 26. Re2 {[%emt 0:05:24]} Rd7 {[%emt 0:01:30]} 27. Red2 {[%emt 0:00:30]} Ke7 {[%emt 0:00:30]} 28. Kf1 {[%emt 0:02:18]} f5 {[%emt 0:02:30]} 29. Bg5+ {[%emt 0:02:12]} Kf7 {[%emt 0:00:30]} 30. Re2 {[%emt 0:00:30]} h6 {[%emt 0:00:30]} 31. Bc1 {[%emt 0:00:30]} g5 {[%emt 0:02:30]} 32. Rde1 {[%emt 0:01:45]} Rc6 {[%emt 0:00:00] [#]} 33. h4 $1 {[%emt 0:01:14]} gxh4 {[%emt 0:06:00] [#]} 34. Bxh6 $1 {[%emt 0:00:49]} (34. gxh4 h5 $16) 34... hxg3 $2 {[%emt 0:02:30]} (34... Bxh6 35. Ne5+ (35. gxh4 $2 Bf4 $19) 35... Kg7 36. Nxc6 $18 (36. Nxd7 Rc7 $18)) (34... Nb6 {is a better defense.}) 35. Bxg7 $18 {[%emt 0:01:09] Threatens to win with Bh6.} g2+ {[%emt 0:00:30]} 36. Kxg2 {[%emt 0:02:05]} Kxg7 {[%emt 0:08:30]} 37. Ne5 {[%emt 0:00:34]} (37. Rxe6 $2 {loses.} Rxe6 (37... Nf4+ $2 38. Kf3 $19) 38. Rxe6 Nf4+ 39. Kf3 Nxe6 $19) 37... Nf4+ {[%emt 0:00:00]} 38. Kf3 {[%emt 0:00:00] White is clearly winning.} Nxe2 {[%emt 0:01:00]} 39. Nxd7 {[%emt 0:01:02]} ({Weaker is} 39. Kxe2 Rdd6 $16) 39... Nxc3 {[%emt 0:00:30]} 40. bxc3 {[%emt 0:00:05][%mdl 4096] Endgame. KRN-KR} c4 {[%emt 0:00:35]} 41. Ne5 {[%emt 0:01:30]} Ra6 {[%emt 0:00:25]} 42. Nxc4 {[%emt 0:00:30]} Rxa2 {[%emt 0:00:30]} 43. Rxe6 {[%emt 0:00:30] Ne5 would now be deadly.} Rc2 {[%emt 0:00:00]} 44. Re7+ {[%emt 0:00:00]} Kf6 {[%emt 0:00:00]} 45. Rxa7 {[%emt 0:00:30]} Rxc3 {[%emt 0:00:00]} 46. Ra3 {[%emt 0:00:01]} Rc1 {[%emt 0:00:00]} 47. Ne3 {[%emt 0:00:00] Weighted Error Value: White=0.12 (very precise) /Black=0.26 (precise) .  Mistake:       	---       	Black=2      Inaccurate:     	---       	Black=5      OK:         	White=11    	Black=13     Best:        	White=4     	---        Strong:       	White=2     	Black=1} 1-0

[Event "Turkish Youth Teams U18 2024"]
[Site "Karaman"]
[Date "2024.04.23"]
[Round "5"]
[White "Karadas, Hena"]
[Black "Acar, Zeynep"]
[Result "1-0"]
[ECO "D00"]
[WhiteElo "1775"]
[BlackElo "1671"]
[Annotator "NA RC COMBH"]
[PlyCount "101"]
[EventDate "2024.04.21"]
[EventType "team-tourn"]
[EventCountry "TUR"]
[SourceTitle "playchess.com"]
[Source "ChessBase"]
[SourceQuality "1"]
[TimeControl "5400+30"]

1. d4 {[%emt 0:01:00]} Nf6 {[%emt 0:01:00]} 2. Nf3 {[%emt 0:00:30]} g6 {[%emt 0:00:30]} 3. Nc3 {[%emt 0:00:30]} d5 {[%emt 0:00:00]} 4. Bf4 {[%emt 0:00:00]} Bg7 {[%emt 0:00:00]} 5. Qd2 {[%emt 0:00:00]} h5 {[%emt 0:05:30]} 6. O-O-O {[%emt 0:01:30]} c6 {[%emt 0:02:30]} 7. Ng5 {[%emt 0:04:30]} b5 {[%emt 0:00:30]} 8. Kb1 {[%emt 0:00:30]} a5 {[%emt 0:05:30]} 9. f3 {[%emt 0:06:30]} a4 {[%emt 0:04:30]} 10. e4 {[%emt 0:03:30]} b4 {[%emt 0:11:30]} 11. Ne2 {[%emt 0:02:30]} Qb6 {[%emt 0:02:30]} 12. Nc1 {[%emt 0:04:30]} O-O {[%emt 0:09:30]} 13. e5 {[%emt 0:04:30]} Ne8 {[%emt 0:03:30]} 14. Qe1 {[%emt 0:04:30]} Nc7 {[%emt 0:02:30]} 15. g4 {[%emt 0:03:30]} f6 {[%emt 0:03:30]} 16. gxh5 {[%emt 0:02:30]} fxg5 {[%emt 0:03:30]} 17. Bxg5 {[%emt 0:00:30]} gxh5 {[%emt 0:06:30]} 18. Bxe7 {[%emt 0:02:30]} Rf7 {[%emt 0:02:30]} 19. Qh4 {[%emt 0:05:30]} Bf5 {[%emt 0:05:30]} 20. Bd3 {[%emt 0:00:30]} Bxd3 {[%emt 0:02:30]} 21. Nxd3 {[%emt 0:03:30]} Ne6 {[%emt 0:02:30]} 22. Nc5 {[%emt 0:02:30]} Qa7 {[%emt 0:07:09]} 23. Bd6 {[%emt 0:06:30]} Nxc5 {[%emt 0:01:00]} 24. Bxc5 {[%emt 0:00:30]} Qd7 {[%emt 0:00:30]} 25. Qxh5 {[%emt 0:00:30]} Na6 {[%emt 0:01:26]} 26. Bd6 {[%emt 0:01:30]} Re8 {[%emt 0:00:30]} 27. Rhg1 {[%emt 0:00:30]} b3 {[%emt 0:00:30]} 28. Rd2 {[%emt 0:00:30]} bxc2+ {[%emt 0:00:30]} 29. Rxc2 {[%emt 0:00:30]} Nc7 {[%emt 0:00:30]} 30. Rcg2 {[%emt 0:00:30]} Ne6 {[%emt 0:00:30]} 31. Rg4 {[%emt 0:00:30]} Nf4 {[%emt 0:00:30]} 32. Qh6 {[%emt 0:00:30]} Qf5+ {[%emt 0:00:30]} 33. Ka1 {[%emt 0:00:30]} Ne6 {[%emt 0:00:30]} 34. Rh4 {[%emt 0:17:30]} Rb7 {[%emt 0:13:54]} 35. Qg6 {[%emt 0:03:53]} Qxg6 {[%emt 0:00:45]} 36. Rxg6 {[%emt 0:00:30]} Kf7 {[%emt 0:00:03]} 37. Rhg4 {[%emt 0:00:00]} Rh8 {[%emt 0:01:07]} 38. h4 {[%emt 0:00:14]} Rh6 {[%emt 0:01:18]} 39. Rxh6 {[%emt 0:01:10]} Bxh6 {[%emt 0:00:03]} 40. Kb1 {[%emt 0:00:49]} Be3 {[%emt 0:01:37]} 41. h5 {[%emt 0:00:30]} Ke8 {[%emt 0:00:30]} 42. Rg8+ {[%emt 0:00:30]} Kf7 {[%emt 0:00:30]} 43. Rg6 {[%emt 0:00:30]} Bg5 {[%emt 0:01:23]} 44. f4 {[%emt 0:01:37]} Bd8 {[%emt 0:00:29]} 45. f5 {[%emt 0:00:26]} Nf8 {[%emt 0:00:35]} 46. e6+ {[%emt 0:02:01]} Ke8 {[%emt 0:00:14]} 47. Bxf8 {[%emt 0:00:23]} Kxf8 {[%emt 0:00:30]} 48. f6 {[%emt 0:00:30]} Rh7 {[%emt 0:00:30]} 49. h6 {[%emt 0:00:30]} Bc7 {[%emt 0:00:53]} 50. e7+ {[%emt 0:00:47]} Kf7 {[%emt 0:00:30]} 51. Rg7+ {[%emt 0:00:00]} 1-0

[Event "Turkish Youth Teams U18 2024"]
[Site "Karaman"]
[Date "2024.04.23"]
[Round "5"]
[White "Dokmecioglu, Burak"]
[Black "Demirtas, Alper"]
[Result "0-1"]
[ECO "C02"]
[WhiteElo "1747"]
[BlackElo "2020"]
[Annotator "TA"]
[PlyCount "78"]
[EventDate "2024.04.21"]
[EventType "team-tourn"]
[EventCountry "TUR"]
[SourceTitle "playchess.com"]
[Source "ChessBase"]
[SourceQuality "1"]
[TimeControl "5400+30"]

{[%evp 9,78,27,58,27,39,27,40,17,12,1,9,5,12,0,0,0,0,-8,0,0,25,22,23,29,34,34,39,-43,-21,-25,-26,-28,-30,-26,0,-36,-39,-115,-115,-131,-114,-170,-95,-87,-106,-103,-79,-150,-50,-291,-298,-426,-422,-514,-503,-922,-903,-1183,-1009,-1843,-1977,-29979,-29979,-29979,-29980,-29992,-29993,-29993,-29994,-29994,-29995]} 1. e4 {[%emt 0:01:00]} e6 {[%emt 0:01:00]} 2. d4 {[%emt 0:00:30]} d5 {[%emt 0:00:30]} 3. e5 {[%emt 0:00:00]} b6 {[%emt 0:00:00]} 4. Nf3 {[%emt 0:02:00]} Qd7 {[%emt 0:00:00]} 5. Bd3 {[%emt 0:09:30]} Ba6 {[%emt 0:00:00]} 6. O-O {[%emt 0:01:30]} c5 {[%emt 0:01:00]} 7. Bxa6 {[%emt 0:13:30]} Nxa6 {[%emt 0:00:30]} 8. c3 {[%emt 0:00:00] White is slightly better.} Ne7 {[%emt 0:01:30]} 9. Qe2 {[%emt 0:05:00]} Nc7 {[%emt 0:01:30]} 10. Bf4 {[%emt 0:08:30]} Nc6 {[%emt 0:00:30]} 11. Nbd2 {[%emt 0:04:30]} Be7 {[%emt 0:00:30]} 12. h4 {[%emt 0:03:30]} h6 {[%emt 0:02:30]} 13. h5 {[%emt 0:00:30]} Rc8 {[%emt 0:04:30]} 14. Rac1 {[%emt 0:02:30]} c4 {[%emt 0:03:30]} 15. Nh2 {[%emt 0:09:30]} b5 {[%emt 0:02:30]} 16. Qg4 {[%emt 0:00:30]} Bf8 {[%emt 0:01:30]} 17. Be3 {[%emt 0:02:30]} Ne7 {[%emt 0:03:30]} 18. Qh3 {[%emt 0:00:30]} (18. Ndf3 $14) 18... Nf5 {[%emt 0:02:30]} 19. g4 {[%emt 0:02:30]} Nxe3 {[%emt 0:00:30]} 20. Qxe3 {[%emt 0:02:30]} Be7 {[%emt 0:04:30]} 21. f4 {[%emt 0:00:30]} Rb8 {[%emt 0:00:30]} 22. Rb1 {[%emt 0:00:30]} b4 {[%emt 0:00:30]} 23. Qg3 {[%emt 0:09:30]} (23. cxb4 $15 Rxb4 24. Kh1) 23... Qa4 $17 {[%emt 0:13:30]} 24. f5 {[%emt 0:04:28]} Qc2 {[%emt 0:00:30]} 25. Qf2 {[%emt 0:02:20] [#]} (25. f6 $17) 25... bxc3 {[%emt 0:02:30]} ({Black should try} 25... exf5 $1 $19 26. cxb4 Bxb4) 26. bxc3 {[%emt 0:00:50]} Kd7 {[%emt 0:00:30]} 27. Rbc1 {[%emt 0:06:47]} Qxa2 {[%emt 0:02:30] Black is much more active.} 28. Ra1 {[%emt 0:02:08]} ({White should play} 28. Nhf3) 28... Qb2 {[%emt 0:01:30]} (28... Qc2 $17 29. Rfc1 Qd3) 29. Rxa7 $2 {[%emt 0:00:59] Loses the game.} (29. Rfc1 $1 $15) 29... Qxc3 $19 {[%emt 0:00:30]} 30. Kh1 {[%emt 0:03:32]} (30. Ra2 $142) 30... Ra8 {[%emt 0:03:30]} 31. fxe6+ {[%emt 0:00:30]} fxe6 {[%emt 0:00:30]} 32. Rxc7+ {[%emt 0:00:30]} (32. Rxa8 $142 Rxa8 33. Rd1) 32... Kxc7 {[%emt 0:00:30]} 33. Qf7 {[%emt 0:00:30]} Kd7 {[%emt 0:00:30]} 34. Ne4 {[%emt 0:02:44]} Qxd4 {[%emt 0:05:30]} 35. Nf6+ {[%emt 0:01:04]} gxf6 {[%emt 0:02:30] Black mates.} 36. exf6 {[%emt 0:00:13]} Qe4+ {[%emt 0:01:30]} 37. Kg1 {[%emt 0:00:19] [#]} Ra2 $1 {[%emt 0:00:30][%csl Ga2][%cal Re4g2]} 38. Qxe7+ {[%emt 0:00:30]} (38. Rf3 Qe2) 38... Kc6 {[%emt 0:00:30][%csl Ga2][%cal Re4g2]} 39. Rf3 {[%emt 0:00:30]} Qe2 {[%emt 0:02:30] Weighted Error Value: White=1.08/Black=0.11 (very precise) .  Loses game:     	White=1     	---        Mistake:       	White=6     	Black=2      Inaccurate:     	White=2     	Black=1      OK:         	White=5     	Black=15     Best:        	White=1     	---} 0-1

[Event "Turkish Youth Teams U18 2024"]
[Site "Karaman"]
[Date "2024.04.23"]
[Round "5"]
[White "Ozgor, Ezel"]
[Black "Gedik, Eylul Ceren"]
[Result "0-1"]
[ECO "D43"]
[WhiteElo "1741"]
[BlackElo "1727"]
[Annotator "NA RC COMBH"]
[PlyCount "60"]
[EventDate "2024.04.21"]
[EventType "team-tourn"]
[EventCountry "TUR"]
[SourceTitle "playchess.com"]
[Source "ChessBase"]
[SourceQuality "1"]
[TimeControl "5400+30"]

1. d4 {[%emt 0:01:00]} d5 {[%emt 0:01:00]} 2. Nf3 {[%emt 0:00:30]} Nf6 {[%emt 0:00:30]} 3. c4 {[%emt 0:00:00]} e6 {[%emt 0:00:00]} 4. Nc3 {[%emt 0:00:00]} c6 {[%emt 0:00:00]} 5. Bf4 {[%emt 0:00:30]} dxc4 {[%emt 0:04:30]} 6. e4 {[%emt 0:10:30]} b5 {[%emt 0:00:30]} 7. Qc2 {[%emt 0:00:30]} a6 {[%emt 0:06:30]} 8. g3 {[%emt 0:06:30]} Bb7 {[%emt 0:01:30]} 9. Rd1 {[%emt 0:02:30]} Qa5 {[%emt 0:15:30]} 10. Bd2 {[%emt 0:02:30]} Qb6 {[%emt 0:03:30]} 11. Bg2 {[%emt 0:04:30]} Be7 {[%emt 0:00:30]} 12. h3 {[%emt 0:01:30]} c5 {[%emt 0:12:30]} 13. dxc5 {[%emt 0:08:30]} Bxc5 {[%emt 0:00:00]} 14. Bg5 {[%emt 0:00:30]} Nbd7 {[%emt 0:01:00]} 15. O-O {[%emt 0:08:30]} h6 {[%emt 0:01:30]} 16. Bxf6 {[%emt 0:06:30]} Nxf6 {[%emt 0:00:30]} 17. Rfe1 {[%emt 0:00:00]} O-O {[%emt 0:00:30]} 18. a3 {[%emt 0:00:00]} Rfd8 {[%emt 0:01:30]} 19. e5 {[%emt 0:06:30]} Nd5 {[%emt 0:05:30]} 20. Ne4 {[%emt 0:00:30]} Be7 {[%emt 0:00:30]} 21. h4 {[%emt 0:02:30]} Rac8 {[%emt 0:00:30]} 22. Rd4 {[%emt 0:07:30]} c3 {[%emt 0:05:30]} 23. Nxc3 {[%emt 0:10:30]} Nxc3 {[%emt 0:02:30]} 24. Rxd8+ {[%emt 0:00:30]} Qxd8 {[%emt 0:00:30]} 25. bxc3 {[%emt 0:00:30]} Qa5 {[%emt 0:01:30]} 26. Rd1 {[%emt 0:06:25]} Qxc3 {[%emt 0:02:30]} 27. Qxc3 {[%emt 0:00:30]} Rxc3 {[%emt 0:00:30]} 28. Rd7 {[%emt 0:00:30]} Bxf3 {[%emt 0:00:30]} 29. Bxf3 {[%emt 0:00:30]} Rxf3 {[%emt 0:00:30]} 30. Rxe7 {[%emt 0:00:30]} Rxa3 {[%emt 0:00:30]} 0-1

[Event "Turkish Youth Teams U18 2024"]
[Site "Karaman"]
[Date "2024.04.23"]
[Round "5"]
[White "Sadik, Muhammed Selim"]
[Black "Cakmak, Kursat Kagan"]
[Result "0-1"]
[ECO "D37"]
[WhiteElo "1737"]
[BlackElo "1798"]
[Annotator "NA RC COMBH"]
[PlyCount "98"]
[EventDate "2024.04.21"]
[EventType "team-tourn"]
[EventCountry "TUR"]
[SourceTitle "playchess.com"]
[Source "ChessBase"]
[SourceQuality "1"]
[TimeControl "5400+30"]

1. d4 {[%emt 0:01:00]} d5 {[%emt 0:01:00]} 2. c4 {[%emt 0:00:00]} e6 {[%emt 0:00:30]} 3. Nf3 {[%emt 0:00:00]} a6 {[%emt 0:00:30]} 4. c5 {[%emt 0:00:00]} Nf6 {[%emt 0:00:30]} 5. Nc3 {[%emt 0:01:00]} Be7 {[%emt 0:00:30]} 6. Bf4 {[%emt 0:00:00]} O-O {[%emt 0:03:30]} 7. e3 {[%emt 0:00:00]} b6 {[%emt 0:01:30]} 8. cxb6 {[%emt 0:05:30]} cxb6 {[%emt 0:00:30]} 9. Bd3 {[%emt 0:00:30]} Bb7 {[%emt 0:00:30]} 10. O-O {[%emt 0:00:30]} Nc6 {[%emt 0:00:30]} 11. Rc1 {[%emt 0:00:30]} Rc8 {[%emt 0:05:30]} 12. a3 {[%emt 0:03:30]} Na5 {[%emt 0:09:30]} 13. Ne5 {[%emt 0:10:30]} b5 {[%emt 0:01:30]} 14. Qf3 {[%emt 0:10:30]} Nc4 {[%emt 0:07:30]} 15. Bxc4 {[%emt 0:07:30]} bxc4 {[%emt 0:01:30]} 16. g4 {[%emt 0:00:30]} Nd7 {[%emt 0:02:30]} 17. Ne2 {[%emt 0:02:30]} f6 {[%emt 0:06:30]} 18. Nxd7 {[%emt 0:05:30]} Qxd7 {[%emt 0:00:00]} 19. Rb1 {[%emt 0:05:30]} Rc6 {[%emt 0:05:00]} 20. b4 {[%emt 0:09:30]} e5 {[%emt 0:04:30]} 21. Bg3 {[%emt 0:00:30]} f5 {[%emt 0:00:00]} 22. Bxe5 {[%emt 0:03:30]} fxg4 {[%emt 0:00:00]} 23. Qg2 {[%emt 0:00:30]} h5 {[%emt 0:02:30]} 24. Nf4 {[%emt 0:00:30]} Rh6 {[%emt 0:00:30]} 25. f3 {[%emt 0:01:30]} Rf5 {[%emt 0:08:30]} 26. Ne2 {[%emt 0:11:30]} Rg6 {[%emt 0:02:30]} 27. f4 {[%emt 0:01:44]} h4 {[%emt 0:00:00]} 28. Kh1 {[%emt 0:06:24]} Rh5 {[%emt 0:01:00]} 29. Nc3 {[%emt 0:04:21]} h3 {[%emt 0:02:30]} 30. Qc2 {[%emt 0:00:13]} Rf5 {[%emt 0:00:30]} 31. Ne2 {[%emt 0:00:30]} Bh4 {[%emt 0:01:30]} 32. Rg1 {[%emt 0:03:13]} Qf7 {[%emt 0:06:30]} 33. Rbf1 {[%emt 0:00:30]} Bc8 {[%emt 0:03:30]} 34. Ng3 {[%emt 0:02:04]} Rc6 {[%emt 0:04:30]} 35. a4 {[%emt 0:02:31]} Bxg3 {[%emt 0:01:46]} 36. hxg3 {[%emt 0:00:51]} h2 {[%emt 0:01:36]} 37. Rg2 {[%emt 0:00:53]} Rh5 {[%emt 0:00:01]} 38. e4 {[%emt 0:00:54]} dxe4 {[%emt 0:02:26]} 39. Qxe4 {[%emt 0:00:30]} Bb7 {[%emt 0:00:30]} 40. Rd1 {[%emt 0:00:30]} Rd6 {[%emt 0:00:30]} 41. Qe2 {[%emt 0:00:30]} Bf3 {[%emt 0:00:30]} 42. Qf1 {[%emt 0:00:30]} Rb6 {[%emt 0:00:30]} 43. d5 {[%emt 0:00:30]} Rxb4 {[%emt 0:00:30]} 44. d6 {[%emt 0:00:30]} Qd7 {[%emt 0:00:30]} 45. a5 {[%emt 0:02:49]} Rh3 {[%emt 0:07:21]} 46. f5 {[%emt 0:00:30]} c3 {[%emt 0:01:14]} 47. Rc1 {[%emt 0:00:32]} Rb2 {[%emt 0:00:30]} 48. Rxc3 {[%emt 0:00:30]} Bxg2+ {[%emt 0:00:30]} 49. Qxg2 {[%emt 0:00:30]} Ra2 {[%emt 0:00:00]} 0-1

[Event "Turkish Youth Teams U18 2024"]
[Site "Karaman"]
[Date "2024.04.23"]
[Round "5"]
[White "Buyuk, Elvin Esma"]
[Black "Mullakutukcu, Ela"]
[Result "1-0"]
[ECO "D11"]
[WhiteElo "1708"]
[BlackElo "1693"]
[Annotator "NA RC COMBH"]
[PlyCount "115"]
[EventDate "2024.04.21"]
[EventType "team-tourn"]
[EventCountry "TUR"]
[SourceTitle "playchess.com"]
[Source "ChessBase"]
[SourceQuality "1"]
[TimeControl "5400+30"]

1. d4 {[%emt 1:31:00]} d5 {[%emt 1:31:00]} 2. c4 {[%emt 0:00:30]} Nf6 {[%emt 0:00:30]} 3. Nf3 {[%emt 0:00:30]} c6 {[%emt 0:00:30]} 4. e3 {[%emt 0:00:30]} Bg4 {[%emt 0:00:30]} 5. Nbd2 {[%emt 0:00:30]} e6 {[%emt 0:00:30]} 6. h3 {[%emt 0:00:30]} Bh5 {[%emt 0:00:30]} 7. g4 {[%emt 0:00:30]} Bg6 {[%emt 0:00:30]} 8. Ne5 {[%emt 0:00:30]} Be4 {[%emt 0:00:30]} 9. f3 {[%emt 0:00:30]} Bg6 {[%emt 0:00:30]} 10. h4 {[%emt 0:00:30]} h6 {[%emt 0:00:30]} 11. Nxg6 {[%emt 0:00:30]} fxg6 {[%emt 0:00:30]} 12. Qc2 {[%emt 0:00:30]} Kf7 {[%emt 0:00:30]} 13. Bd3 {[%emt 0:00:30]} Bd6 {[%emt 0:00:30]} 14. Bxg6+ {[%emt 0:00:30]} Ke7 {[%emt 0:00:30]} 15. b3 {[%emt 0:00:30]} Kd7 {[%emt 0:00:30]} 16. Rh3 {[%emt 0:00:30]} Qc7 {[%emt 0:00:30]} 17. e4 {[%emt 0:00:30]} dxe4 {[%emt 0:00:30]} 18. Nxe4 {[%emt 0:00:30]} Nxe4 {[%emt 0:00:30]} 19. Qxe4 {[%emt 0:00:30]} Rf8 {[%emt 0:00:30]} 20. Bd2 {[%emt 0:00:30]} Na6 {[%emt 0:00:30]} 21. Kd1 {[%emt 0:00:30]} Rad8 {[%emt 0:00:30]} 22. d5 {[%emt 0:00:30]} Nc5 {[%emt 0:00:30]} 23. Qe3 {[%emt 0:00:30]} Rf6 {[%emt 0:00:30]} 24. h5 {[%emt 0:00:30]} Kc8 {[%emt 0:00:30]} 25. b4 {[%emt 0:00:30]} Na6 {[%emt 0:00:30]} 26. Bc3 {[%emt 0:00:30]} Bf4 {[%emt 0:00:30]} 27. Qe2 {[%emt 0:00:30]} e5 {[%emt 0:00:30]} 28. Bf5+ {[%emt 0:00:30]} Kb8 {[%emt 0:00:30]} 29. Bd2 {[%emt 0:00:30]} cxd5 {[%emt 0:00:30]} 30. c5 {[%emt 0:00:30]} Bxd2 {[%emt 0:00:30]} 31. Qxd2 {[%emt 0:00:30]} Qe7 {[%emt 0:00:30]} 32. Kc2 {[%emt 0:00:30]} Nc7 {[%emt 0:00:30]} 33. a4 {[%emt 0:00:30]} Ne6 {[%emt 0:00:30]} 34. Bxe6 {[%emt 0:00:30]} Rxe6 {[%emt 0:00:30]} 35. Re1 {[%emt 0:00:30]} Qf6 {[%emt 0:00:30]} 36. Rg3 {[%emt 0:00:30]} Ree8 {[%emt 0:00:30]} 37. Kb3 {[%emt 0:00:30]} Kc7 {[%emt 0:00:30]} 38. g5 {[%emt 0:00:30]} Qf7 {[%emt 0:00:30]} 39. gxh6 {[%emt 0:00:30]} gxh6 {[%emt 0:00:30]} 40. Qxh6 {[%emt 0:00:30]} d4+ {[%emt 0:00:30]} 41. Ka3 {[%emt 0:00:30]} Qc4 {[%emt 0:00:30]} 42. Qd2 {[%emt 0:00:30]} d3 {[%emt 0:00:30]} 43. Rc1 {[%emt 0:00:30]} Qf4 {[%emt 0:00:30]} 44. Rg7+ {[%emt 0:00:30]} Kc8 {[%emt 0:00:30]} 45. Rd1 {[%emt 0:00:30]} Qxf3 {[%emt 0:00:30]} 46. h6 {[%emt 0:00:30]} e4 {[%emt 0:00:30]} 47. Qh2 {[%emt 0:00:30]} Rd7 {[%emt 0:00:30]} 48. Rxd7 {[%emt 0:00:30]} Kxd7 {[%emt 0:00:30]} 49. Qd6+ {[%emt 0:00:30]} Kc8 {[%emt 0:00:30]} 50. c6 {[%emt 0:00:30]} Qf7 {[%emt 0:00:30]} 51. Rc1 {[%emt 0:00:30]} b6 {[%emt 0:00:30]} 52. Rg1 {[%emt 0:00:30]} Rd8 {[%emt 0:00:30]} 53. Qg3 {[%emt 0:00:30]} Qh7 {[%emt 0:00:30]} 54. Qh3+ {[%emt 0:00:30]} Kb8 {[%emt 0:00:30]} 55. Rg7 {[%emt 0:00:30]} d2 {[%emt 0:00:30]} 56. c7+ {[%emt 0:00:30]} Kb7 {[%emt 0:00:30]} 57. cxd8=N+ {[%emt 0:00:30]} Ka8 {[%emt 0:00:30]} 58. Qc8# {[%emt 0:00:30]} 1-0